[Event "Masters Tournament (MTO)"]
[Site "Biel, Switzerland"]
[Date "2026.07.15"]
[Round "3.1"]
[White "Ganguly, Surya Shekhar"]
[Black "Lu, Miaoyi"]
[Result "1/2-1/2"]
[TimeControl "100+30+30sec/move"]
[WhiteTitle "-"]
[BlackTitle "-"]
[WhiteFideId "5002150"]
[BlackFideId "8618020"]
[WhiteElo "2578"]
[BlackElo "2392"]

1. c4 {[%clk 01:40:51]} {[%emt 00:00:07]} Nf6 {[%clk 01:38:21]} {[%emt
00:02:40]} 2. Nc3 {[%clk 01:40:52]} {[%emt 00:00:27]} e5 {[%clk 01:31:38]}
{[%emt 00:07:15]} 3. Nf3 {[%clk 01:40:09]} {[%emt 00:01:12]} Nc6 {[%clk
01:31:56]} {[%emt 00:00:13]} 4. g3 {[%clk 01:40:12]} {[%emt 00:00:25]} Bb4
{[%clk 01:32:00]} {[%emt 00:00:27]} 5. Nd5 {[%clk 01:36:23]} {[%emt 00:04:19]}
e4 {[%clk 01:32:03]} {[%emt 00:00:28]} 6. Nxb4 {[%clk 01:36:16]} {[%emt
00:00:36]} Nxb4 {[%clk 01:27:19]} {[%emt 00:05:14]} 7. Nd4 {[%clk 01:36:38]}
{[%emt 00:00:08]} Ng4 {[%clk 01:19:22]} {[%emt 00:08:27]} 8. Bh3 {[%clk
01:21:03]} {[%emt 00:16:03]} Qf6 {[%clk 00:59:41]} {[%emt 00:20:12]} 9. Bxg4
{[%clk 01:21:01]} {[%emt 00:00:32]} Qxd4 {[%clk 01:00:09]} {[%emt 00:00:03]} 10.
Qb3 {[%clk 01:12:59]} {[%emt 00:08:32]} a5 {[%clk 00:58:33]} {[%emt 00:02:07]}
11. O-O {[%clk 01:08:12]} {[%emt 00:05:16]} h5 {[%clk 00:54:40]} {[%emt
00:04:23]} 12. Bh3 {[%clk 01:07:17]} {[%emt 00:01:24]} h4 {[%clk 00:54:41]}
{[%emt 00:00:30]} 13. Qc3 {[%clk 00:57:25]} {[%emt 00:10:21]} Nc6 {[%clk
00:44:07]} {[%emt 00:11:05]} 14. Kg2 {[%clk 00:49:51]} {[%emt 00:08:04]} d6
{[%clk 00:27:37]} {[%emt 00:17:00]} 15. Bxc8 {[%clk 00:49:50]} {[%emt
00:00:31]} Rxc8 {[%clk 00:28:04]} {[%emt 00:00:04]} 16. b3 {[%clk 00:44:10]}
{[%emt 00:06:09]} Qxc3 {[%clk 00:22:59]} {[%emt 00:05:35]} 17. dxc3 {[%clk
00:42:22]} {[%emt 00:02:17]} b6 {[%clk 00:20:33]} {[%emt 00:02:57]} 18. a4
{[%clk 00:40:26]} {[%emt 00:02:25]} h3+ {[%clk 00:17:56]} {[%emt 00:03:08]} 19.
Kg1 {[%clk 00:40:49]} {[%emt 00:00:06]} f5 {[%clk 00:17:49]} {[%emt 00:00:38]}
20. f3 {[%clk 00:38:55]} {[%emt 00:02:23]} O-O {[%clk 00:15:46]} {[%emt
00:02:33]} 21. Bf4 {[%clk 00:37:47]} {[%emt 00:01:38]} Rce8 {[%clk 00:14:51]}
{[%emt 00:01:25]} 22. Kf2 {[%clk 00:37:31]} {[%emt 00:00:46]} Re6 {[%clk
00:08:57]} {[%emt 00:06:25]} 23. Rg1 {[%clk 00:33:52]} {[%emt 00:04:08]} Rfe8
{[%clk 00:02:36]} {[%emt 00:06:51]} 24. Ra2 {[%clk 00:31:51]} {[%emt 00:02:31]}
exf3 {[%clk 00:02:10]} {[%emt 00:00:56]} 25. exf3 {[%clk 00:32:18]} {[%emt
00:00:03]} Ne5 {[%clk 00:02:36]} {[%emt 00:00:04]} 1/2-1/2

[Event "Masters Tournament (MTO)"]
[Site "Biel, Switzerland"]
[Date "2026.07.15"]
[Round "3.2"]
[White "Savitha, Shri B"]
[Black "Acs, Peter"]
[Result "0-1"]
[TimeControl "100+30+30sec/move"]
[WhiteTitle "-"]
[BlackTitle "-"]
[WhiteFideId "35061887"]
[BlackFideId "708020"]
[WhiteElo "2368"]
[BlackElo "2561"]

1. e4 {[%clk 01:37:26]} {[%emt 00:03:33]} c5 {[%clk 01:40:49]} {[%emt
00:00:12]} 2. Nf3 {[%clk 01:37:15]} {[%emt 00:00:40]} d6 {[%clk 01:40:53]}
{[%emt 00:00:26]} 3. d4 {[%clk 01:37:05]} {[%emt 00:00:41]} cxd4 {[%clk
01:41:14]} {[%emt 00:00:08]} 4. Nxd4 {[%clk 01:37:32]} {[%emt 00:00:03]} Nf6
{[%clk 01:41:30]} {[%emt 00:00:14]} 5. Nc3 {[%clk 01:37:57]} {[%emt 00:00:06]}
Nc6 {[%clk 01:41:46]} {[%emt 00:00:14]} 6. Bg5 {[%clk 01:37:29]} {[%emt
00:00:58]} Bd7 {[%clk 01:41:33]} {[%emt 00:00:43]} 7. Qd2 {[%clk 01:37:18]}
{[%emt 00:00:42]} a6 {[%clk 01:41:36]} {[%emt 00:00:26]} 8. O-O-O {[%clk
01:37:31]} {[%emt 00:00:17]} e6 {[%clk 01:41:37]} {[%emt 00:00:28]} 9. Kb1
{[%clk 01:37:22]} {[%emt 00:00:40]} h6 {[%clk 01:38:51]} {[%emt 00:03:16]} 10.
Be3 {[%clk 01:34:28]} {[%emt 00:03:24]} b5 {[%clk 01:37:15]} {[%emt 00:02:05]}
11. Nxc6 {[%clk 01:34:44]} {[%emt 00:00:14]} Bxc6 {[%clk 01:37:34]} {[%emt
00:00:11]} 12. f3 {[%clk 01:35:13]} {[%emt 00:00:02]} Qc7 {[%clk 01:33:00]}
{[%emt 00:05:03]} 13. Ne2 {[%clk 01:35:33]} {[%emt 00:00:10]} Be7 {[%clk
01:27:25]} {[%emt 00:06:05]} 14. Nd4 {[%clk 01:35:47]} {[%emt 00:00:16]} Bb7
{[%clk 01:26:06]} {[%emt 00:01:48]} 15. g4 {[%clk 01:35:38]} {[%emt 00:00:39]}
Nd7 {[%clk 01:24:02]} {[%emt 00:02:35]} 16. g5 {[%clk 01:26:58]} {[%emt
00:09:10]} hxg5 {[%clk 01:10:16]} {[%emt 00:14:16]} 17. Bxg5 {[%clk 01:27:15]}
{[%emt 00:00:13]} Ne5 {[%clk 01:04:50]} {[%emt 00:05:56]} 18. Rg1 {[%clk
01:17:37]} {[%emt 00:10:08]} g6 {[%clk 00:55:11]} {[%emt 00:10:09]} 19. f4
{[%clk 01:05:12]} {[%emt 00:12:55]} Bxg5 {[%clk 00:48:39]} {[%emt 00:07:01]} 20.
Rxg5 {[%clk 01:00:46]} {[%emt 00:04:56]} Nc4 {[%clk 00:41:47]} {[%emt
00:07:21]} 21. Bxc4 {[%clk 01:00:55]} {[%emt 00:00:21]} bxc4 {[%clk 00:41:32]}
{[%emt 00:00:45]} 22. f5 {[%clk 00:51:04]} {[%emt 00:10:21]} gxf5 {[%clk
00:39:36]} {[%emt 00:02:26]} 23. Rg7 {[%clk 00:48:41]} {[%emt 00:02:53]} c3
{[%clk 00:26:26]} {[%emt 00:13:39]} 24. Qe3 {[%clk 00:24:33]} {[%emt 00:24:38]}
Bxe4 {[%clk 00:25:38]} {[%emt 00:01:18]} 25. Nxe6 {[%clk 00:23:28]} {[%emt
00:01:36]} Qe7 {[%clk 00:24:59]} {[%emt 00:01:08]} 26. Nd4 {[%clk 00:23:15]}
{[%emt 00:00:43]} Rc8 {[%clk 00:22:31]} {[%emt 00:02:58]} 27. Rdg1 {[%clk
00:19:52]} {[%emt 00:03:52]} cxb2 {[%clk 00:18:56]} {[%emt 00:04:05]} 28. Qb3
{[%clk 00:18:22]} {[%emt 00:02:01]} Qf6 {[%clk 00:16:19]} {[%emt 00:03:07]} 29.
Qb6 {[%clk 00:15:50]} {[%emt 00:03:02]} Kd7 {[%clk 00:13:17]} {[%emt 00:03:32]}
30. R1g6 {[%clk 00:05:39]} {[%emt 00:10:41]} Qxg6 {[%clk 00:12:58]} {[%emt
00:00:50]} 31. Rxg6 {[%clk 00:06:08]} fxg6 {[%clk 00:13:15]} {[%emt 00:00:13]}
32. Qb3 {[%clk 00:06:18]} {[%emt 00:00:20]} Rhe8 {[%clk 00:08:29]} {[%emt
00:05:15]} 33. Qf7+ {[%clk 00:06:24]} {[%emt 00:00:24]} Re7 {[%clk 00:08:47]}
{[%emt 00:00:12]} 34. Qxg6 {[%clk 00:06:45]} {[%emt 00:00:09]} Rb8 {[%clk
00:07:21]} {[%emt 00:01:56]} 35. Nb3 {[%clk 00:04:18]} {[%emt 00:02:58]} a5
{[%clk 00:07:33]} {[%emt 00:00:18]} 36. Qg1 {[%clk 00:04:14]} {[%emt 00:00:33]}
Re5 {[%clk 00:05:36]} {[%emt 00:02:27]} 37. Qg7+ {[%clk 00:03:27]} {[%emt
00:01:18]} Kc6 {[%clk 00:04:51]} {[%emt 00:01:15]} 38. Qa7 {[%clk 00:03:40]}
{[%emt 00:00:16]} Rb7 {[%clk 00:04:15]} {[%emt 00:01:07]} 39. Qa6+ {[%clk
00:02:12]} {[%emt 00:01:59]} Kd7 {[%clk 00:01:06]} {[%emt 00:03:38]} 40. Kxb2
{[%clk 00:00:51]} {[%emt 00:01:52]} f4 {[%clk 00:01:19]} {[%emt 00:00:17]} 41.
Ka3 {[%clk 00:25:00]} {[%emt 00:06:21]} f3 {[%clk 00:27:28]} {[%emt 00:04:22]}
42. Qf1 {[%clk 00:24:25]} {[%emt 00:01:05]} Bc6 {[%clk 00:27:16]} {[%emt
00:00:41]} 43. Qh3+ {[%clk 00:21:10]} {[%emt 00:03:45]} Kc7 {[%clk 00:27:35]}
{[%emt 00:00:11]} 44. Qh7+ {[%clk 00:21:06]} {[%emt 00:00:35]} Bd7 {[%clk
00:26:31]} {[%emt 00:01:33]} 45. Qf7 {[%clk 00:19:12]} {[%emt 00:02:24]} Rf5
{[%clk 00:22:21]} {[%emt 00:04:41]} 46. Qc4+ {[%clk 00:19:33]} {[%emt
00:00:08]} Kb8 {[%clk 00:22:30]} {[%emt 00:00:22]} 47. Nd4 {[%clk 00:16:41]}
{[%emt 00:03:22]} Rc5 {[%clk 00:21:24]} {[%emt 00:01:36]} 48. Qg8+ {[%clk
00:16:17]} {[%emt 00:00:53]} Ka7 {[%clk 00:19:42]} {[%emt 00:02:14]} 49. Qg1
{[%clk 00:16:41]} {[%emt 00:00:05]} Ka8 {[%clk 00:16:43]} {[%emt 00:03:28]} 50.
Qe3 {[%clk 00:16:36]} {[%emt 00:00:36]} Rc4 {[%clk 00:16:21]} {[%emt 00:00:52]}
51. Nb3 {[%clk 00:16:47]} {[%emt 00:00:19]} Bc6 {[%clk 00:16:31]} {[%emt
00:00:20]} 52. Qd3 {[%clk 00:16:27]} {[%emt 00:00:49]} Ra4+ {[%clk 00:11:11]}
{[%emt 00:05:50]} 53. Kb2 {[%clk 00:16:56]} {[%emt 00:00:01]} Rb6 {[%clk
00:11:28]} {[%emt 00:00:13]} 54. Qxd6 {[%clk 00:17:04]} {[%emt 00:00:22]} Ka7
{[%clk 00:11:04]} {[%emt 00:00:53]} 55. Qc5 {[%clk 00:15:14]} {[%emt 00:02:20]}
Bb7 {[%clk 00:08:18]} {[%emt 00:03:17]} 56. h4 {[%clk 00:14:30]} {[%emt
00:01:14]} Rf4 {[%clk 00:08:00]} {[%emt 00:00:48]} 57. Kc3 {[%clk 00:08:16]}
{[%emt 00:06:44]} f2 {[%clk 00:07:51]} {[%emt 00:00:39]} 58. Nd2 {[%clk
00:08:31]} {[%emt 00:00:14]} f1=Q {[%clk 00:03:50]} {[%emt 00:04:30]} 59. Nxf1
{[%clk 00:09:00]} {[%emt 00:00:02]} Rxf1 {[%clk 00:04:08]} {[%emt 00:00:12]} 60.
Qxa5+ {[%clk 00:09:27]} {[%emt 00:00:03]} Ba6 {[%clk 00:04:29]} {[%emt
00:00:08]} 61. Qc5 {[%clk 00:09:36]} {[%emt 00:00:21]} Rff6 {[%clk 00:04:45]}
{[%emt 00:00:14]} 62. Kd2 {[%clk 00:09:41]} {[%emt 00:00:25]} Rfd6+ {[%clk
00:04:39]} {[%emt 00:00:36]} 63. Kc1 {[%clk 00:09:32]} {[%emt 00:00:39]} Kb7
{[%clk 00:04:50]} {[%emt 00:00:20]} 64. Qe5 {[%clk 00:07:42]} {[%emt 00:02:20]}
Bc4 {[%clk 00:04:49]} {[%emt 00:00:30]} 65. Qe4+ {[%clk 00:05:49]} {[%emt
00:02:24]} Bd5 {[%clk 00:05:09]} {[%emt 00:00:09]} 66. Qe7+ {[%clk 00:06:13]}
{[%emt 00:00:06]} Kc8 {[%clk 00:04:38]} {[%emt 00:01:01]} 67. Qf8+ {[%clk
00:05:55]} {[%emt 00:00:48]} Kc7 {[%clk 00:04:54]} {[%emt 00:00:14]} 68. Qe7+
{[%clk 00:05:50]} {[%emt 00:00:32]} Rd7 {[%clk 00:04:45]} {[%emt 00:00:42]} 69.
Qe5+ {[%clk 00:04:56]} {[%emt 00:01:23]} Kb7 {[%clk 00:04:52]} {[%emt
00:00:23]} 70. Qf5 {[%clk 00:05:06]} {[%emt 00:00:20]} Rdd6 {[%clk 00:05:04]}
{[%emt 00:00:19]} 71. Qh7+ {[%clk 00:04:42]} {[%emt 00:00:54]} Kc6 {[%clk
00:05:21]} {[%emt 00:00:13]} 72. Qa7 {[%clk 00:04:40]} {[%emt 00:00:32]} Rb7
{[%clk 00:03:45]} {[%emt 00:02:06]} 73. Qa4+ {[%clk 00:04:29]} {[%emt
00:00:41]} Kc7 {[%clk 00:04:07]} {[%emt 00:00:08]} 74. Qa3 {[%clk 00:03:32]}
{[%emt 00:01:27]} Rbb6 {[%clk 00:04:10]} {[%emt 00:00:26]} 75. h5 {[%clk
00:03:16]} {[%emt 00:00:45]} Kb8 {[%clk 00:03:57]} {[%emt 00:00:43]} 76. Qa4
{[%clk 00:02:40]} {[%emt 00:01:07]} Kb7 {[%clk 00:03:24]} {[%emt 00:01:03]} 77.
Qa3 {[%clk 00:02:21]} {[%emt 00:00:49]} Bc4 {[%clk 00:02:39]} {[%emt 00:01:14]}
78. Qf3+ {[%clk 00:01:45]} {[%emt 00:01:06]} Ka7 {[%clk 00:01:49]} {[%emt
00:01:20]} 79. Qa3+ {[%clk 00:01:39]} {[%emt 00:00:36]} Kb8 {[%clk 00:02:16]}
{[%emt 00:00:03]} 80. Qa4 {[%clk 00:02:01]} {[%emt 00:00:08]} Rbc6 {[%clk
00:01:41]} {[%emt 00:01:05]} 81. Kb2 {[%clk 00:01:52]} {[%emt 00:00:39]} Bf7
{[%clk 00:01:24]} {[%emt 00:00:46]} 82. Kc1 {[%clk 00:00:50]} {[%emt 00:01:34]}
Ra6 {[%clk 00:00:40]} {[%emt 00:01:14]} 83. Qb4+ {[%clk 00:01:00]} {[%emt
00:00:20]} Rab6 {[%clk 00:01:03]} {[%emt 00:00:07]} 84. Qa5 {[%clk 00:01:15]}
{[%emt 00:00:15]} Kb7 {[%clk 00:01:13]} {[%emt 00:00:20]} 85. c3 {[%clk
00:00:50]} {[%emt 00:00:54]} Rd5 {[%clk 00:01:15]} {[%emt 00:00:28]} 86. Qa3
{[%clk 00:01:17]} {[%emt 00:00:03]} Bxh5 {[%clk 00:01:25]} {[%emt 00:00:19]} 87.
Qe7+ {[%clk 00:01:45]} {[%emt 00:00:02]} Ka6 {[%clk 00:01:47]} {[%emt
00:00:09]} 88. Qf8 {[%clk 00:01:10]} {[%emt 00:01:05]} Rbd6 {[%clk 00:01:32]}
{[%emt 00:00:45]} 89. Qa8+ {[%clk 00:01:07]} {[%emt 00:00:33]} Kb6 {[%clk
00:01:51]} {[%emt 00:00:11]} 90. Qb8+ {[%clk 00:01:15]} {[%emt 00:00:22]} Kc5
{[%clk 00:01:47]} {[%emt 00:00:28]} 91. Qb4+ {[%clk 00:00:47]} {[%emt
00:01:04]} Kc6 {[%clk 00:02:15]} {[%emt 00:00:02]} 92. Qa4+ {[%clk 00:01:13]}
{[%emt 00:00:04]} Kb6 {[%clk 00:02:23]} {[%emt 00:00:22]} 93. Qb4+ {[%clk
00:01:42]} {[%emt 00:00:02]} Kc7 {[%clk 00:02:46]} {[%emt 00:00:07]} 94. Qf4
{[%clk 00:01:10]} {[%emt 00:01:01]} Bg6 {[%clk 00:02:58]} {[%emt 00:00:18]} 95.
Qc4+ {[%clk 00:01:17]} {[%emt 00:00:23]} Kb7 {[%clk 00:03:09]} {[%emt
00:00:19]} 96. Qb4+ {[%clk 00:01:41]} {[%emt 00:00:07]} Rb6 {[%clk 00:02:56]}
{[%emt 00:00:42]} 97. Qe7+ {[%clk 00:01:53]} {[%emt 00:00:18]} Kc8 {[%clk
00:02:45]} {[%emt 00:00:41]} 98. Qf8+ {[%clk 00:01:57]} {[%emt 00:00:26]} Kc7
{[%clk 00:02:38]} {[%emt 00:00:36]} 99. Qe7+ {[%clk 00:00:56]} {[%emt
00:01:32]} Rd7 {[%clk 00:02:56]} {[%emt 00:00:11]} 0-1

[Event "Masters Tournament (MTO)"]
[Site "Biel, Switzerland"]
[Date "2026.07.15"]
[Round "3.3"]
[White "Ghosh, Diptayan"]
[Black "Cao, Qingfeng"]
[Result "1/2-1/2"]
[TimeControl "100+30+30sec/move"]
[WhiteTitle "-"]
[BlackTitle "-"]
[WhiteFideId "5045207"]
[BlackFideId "8627568"]
[WhiteElo "2554"]
[BlackElo "2365"]

1. Nf3 {[%clk 01:36:09]} {[%emt 00:04:50]} Nf6 {[%clk 01:40:11]} {[%emt
00:00:50]} 2. c4 {[%clk 01:36:29]} {[%emt 00:00:10]} b6 {[%clk 01:40:10]}
{[%emt 00:00:31]} 3. g3 {[%clk 01:36:12]} {[%emt 00:00:47]} c5 {[%clk
01:40:19]} {[%emt 00:00:21]} 4. Bg2 {[%clk 01:36:37]} {[%emt 00:00:05]} Bb7
{[%clk 01:40:41]} {[%emt 00:00:09]} 5. O-O {[%clk 01:36:37]} {[%emt 00:00:30]}
g6 {[%clk 01:40:52]} {[%emt 00:00:18]} 6. d4 {[%clk 01:34:36]} {[%emt
00:02:31]} cxd4 {[%clk 01:40:43]} {[%emt 00:00:39]} 7. Qxd4 {[%clk 01:35:02]}
{[%emt 00:00:04]} Bg7 {[%clk 01:36:23]} {[%emt 00:04:49]} 8. Nc3 {[%clk
01:35:08]} {[%emt 00:00:24]} Na6 {[%clk 01:34:10]} {[%emt 00:02:43]} 9. Be3
{[%clk 01:26:01]} {[%emt 00:09:37]} Rc8 {[%emt 00:12:50]} 10. Qh4 {[%clk
01:20:18]} Nc5 {[%clk 01:24:37]} {[%emt 00:03:57]} 11. Rfd1 {[%clk 01:06:57]}
{[%emt 00:13:51]} O-O {[%clk 01:14:58]} {[%emt 00:10:08]} 12. Rac1 {[%clk
01:05:59]} {[%emt 00:01:28]} Nce4 {[%clk 01:14:54]} {[%emt 00:00:34]} 13. Nxe4
{[%clk 01:03:37]} {[%emt 00:02:52]} Bxe4 {[%clk 01:15:15]} {[%emt 00:00:09]} 14.
Bd4 {[%clk 01:01:23]} {[%emt 00:02:45]} Re8 {[%clk 01:15:11]} {[%emt 00:00:34]}
15. b3 {[%clk 00:51:30]} {[%emt 00:10:23]} Qc7 {[%clk 01:03:19]} {[%emt
00:12:22]} 16. Bh3 {[%clk 00:39:01]} {[%emt 00:12:59]} Ba8 {[%clk 00:42:25]}
{[%emt 00:21:24]} 17. Be5 {[%clk 00:30:50]} {[%emt 00:08:41]} Qb7 {[%clk
00:41:50]} {[%emt 00:01:05]} 18. Qf4 {[%clk 00:25:18]} {[%emt 00:06:02]} Rcd8
{[%clk 00:39:08]} {[%emt 00:03:13]} 19. Bg2 {[%clk 00:23:40]} {[%emt 00:02:09]}
Nh5 {[%clk 00:32:40]} {[%emt 00:06:58]} 20. Qe3 {[%clk 00:23:49]} {[%emt
00:00:20]} Qe4 {[%clk 00:32:35]} {[%emt 00:00:35]} 21. Qxe4 {[%clk 00:23:17]}
{[%emt 00:01:02]} Bxe4 {[%clk 00:33:02]} {[%emt 00:00:02]} 22. Bxg7 {[%clk
00:23:35]} {[%emt 00:00:12]} Kxg7 {[%clk 00:33:23]} {[%emt 00:00:09]} 23. Nd4
{[%clk 00:22:35]} {[%emt 00:01:30]} Bxg2 {[%clk 00:32:10]} {[%emt 00:01:44]} 24.
Kxg2 {[%clk 00:23:00]} {[%emt 00:00:04]} d6 {[%clk 00:29:52]} {[%emt 00:02:49]}
25. Nb5 {[%clk 00:18:24]} {[%emt 00:05:06]} 1/2-1/2

[Event "Masters Tournament (MTO)"]
[Site "Biel, Switzerland"]
[Date "2026.07.15"]
[Round "3.4"]
[White "Dong, Hongfu"]
[Black "Aronyak, Ghosh"]
[Result "1/2-1/2"]
[TimeControl "100+30+30sec/move"]
[WhiteTitle "-"]
[BlackTitle "-"]
[WhiteFideId "8626960"]
[BlackFideId "25072846"]
[WhiteElo "2353"]
[BlackElo "2549"]

1. e4 {[%clk 01:40:57]} {[%emt 00:00:05]} c6 {[%clk 01:40:12]} {[%emt
00:00:47]} 2. d4 {[%clk 01:41:17]} {[%emt 00:00:10]} d5 {[%clk 01:40:33]}
{[%emt 00:00:08]} 3. e5 {[%clk 01:41:38]} {[%emt 00:00:09]} Bf5 {[%clk
01:40:34]} {[%emt 00:00:29]} 4. h4 {[%clk 01:41:36]} {[%emt 00:00:32]} h5
{[%clk 01:40:36]} {[%emt 00:00:29]} 5. c4 {[%clk 01:41:55]} {[%emt 00:00:10]}
e6 {[%clk 01:40:11]} {[%emt 00:00:55]} 6. Nc3 {[%clk 01:42:14]} {[%emt
00:00:11]} Ne7 {[%clk 01:40:27]} {[%emt 00:00:14]} 7. Nge2 {[%clk 01:42:27]}
{[%emt 00:00:17]} Nd7 {[%clk 01:40:14]} {[%emt 00:00:44]} 8. Ng3 {[%clk
01:42:16]} {[%emt 00:00:40]} Bg6 {[%clk 01:40:20]} {[%emt 00:00:24]} 9. Bg5
{[%clk 01:26:58]} {[%emt 00:15:47]} f6 {[%clk 01:39:32]} {[%emt 00:01:19]} 10.
exf6 {[%clk 01:25:59]} {[%emt 00:01:28]} gxf6 {[%clk 01:39:43]} {[%emt
00:00:19]} 11. Be3 {[%clk 01:25:18]} {[%emt 00:01:12]} Nb6 {[%clk 01:39:46]}
{[%emt 00:00:27]} 12. b3 {[%clk 01:15:58]} {[%emt 00:09:49]} Nf5 {[%clk
01:39:06]} {[%emt 00:01:10]} 13. Bd3 {[%clk 01:02:59]} {[%emt 00:13:29]} Bb4
{[%clk 01:39:09]} {[%emt 00:00:27]} 14. Rc1 {[%clk 01:03:08]} {[%emt 00:00:21]}
Qd7 {[%clk 01:39:29]} {[%emt 00:00:10]} 15. c5 {[%clk 00:42:22]} {[%emt
00:21:17]} Nc8 {[%clk 01:38:18]} {[%emt 00:01:41]} 16. Bxf5 {[%clk 00:42:39]}
{[%emt 00:00:13]} Bxf5 {[%clk 01:38:00]} {[%emt 00:00:48]} 17. Nxf5 {[%clk
00:41:15]} {[%emt 00:01:54]} exf5 {[%clk 01:38:16]} {[%emt 00:00:14]} 18. O-O
{[%clk 00:41:28]} {[%emt 00:00:17]} Kf7 {[%clk 01:38:28]} {[%emt 00:00:18]} 19.
Ne2 {[%clk 00:35:39]} {[%emt 00:06:19]} Ne7 {[%clk 01:35:39]} {[%emt 00:03:18]}
20. Bd2 {[%clk 00:31:10]} {[%emt 00:04:59]} Bxd2 {[%clk 01:32:40]} {[%emt
00:03:29]} 21. Qxd2 {[%clk 00:31:39]} {[%emt 00:00:02]} Ng6 {[%clk 01:32:20]}
{[%emt 00:00:49]} 22. Nf4 {[%clk 00:13:42]} {[%emt 00:18:28]} Nxh4 {[%clk
01:27:14]} {[%emt 00:05:36]} 23. Rfe1 {[%clk 00:13:58]} {[%emt 00:00:13]} Ng6
{[%clk 01:17:48]} {[%emt 00:09:56]} 24. Re2 {[%clk 00:11:52]} {[%emt 00:02:36]}
Rae8 {[%clk 01:14:55]} {[%emt 00:03:23]} 25. Rxe8 {[%clk 00:11:32]} {[%emt
00:00:51]} Rxe8 {[%clk 01:07:19]} {[%emt 00:08:05]} 26. Nxh5 {[%clk 00:11:36]}
{[%emt 00:00:27]} Rh8 {[%clk 01:07:37]} {[%emt 00:00:12]} 27. Nf4 {[%clk
00:11:49]} {[%emt 00:00:17]} Qc7 {[%clk 01:07:34]} {[%emt 00:00:34]} 28. Nh3
{[%clk 00:11:10]} {[%emt 00:01:09]} Rh4 {[%clk 01:05:08]} {[%emt 00:02:56]} 29.
Re1 {[%clk 00:09:08]} {[%emt 00:02:32]} Nf4 {[%clk 01:04:00]} {[%emt 00:01:37]}
30. Nxf4 {[%clk 00:09:11]} {[%emt 00:00:26]} Qxf4 {[%clk 01:04:25]} {[%emt
00:00:06]} 31. Qxf4 {[%clk 00:09:26]} {[%emt 00:00:15]} Rxf4 {[%clk 01:04:50]}
{[%emt 00:00:04]} 32. Rd1 {[%clk 00:09:54]} {[%emt 00:00:03]} Re4 {[%clk
01:04:09]} {[%emt 00:00:15]} 1/2-1/2

[Event "Masters Tournament (MTO)"]
[Site "Biel, Switzerland"]
[Date "2026.07.15"]
[Round "3.5"]
[White "Haimovich, Tal"]
[Black "Kozak, Adam"]
[Result "1/2-1/2"]
[TimeControl "100+30+30sec/move"]
[WhiteTitle "-"]
[BlackTitle "-"]
[WhiteFideId "2801698"]
[BlackFideId "753246"]
[WhiteElo "2310"]
[BlackElo "2531"]

1. d4 {[%clk 01:40:58]} Nf6 {[%clk 01:32:43]} {[%emt 00:08:04]} 2. c4 {[%clk
01:41:21]} {[%emt 00:00:21]} e6 {[%clk 01:33:08]} {[%emt 00:00:05]} 3. Nf3
{[%clk 01:41:18]} {[%emt 00:00:33]} d5 {[%clk 01:33:01]} {[%emt 00:00:37]} 4.
Nc3 {[%clk 01:41:25]} {[%emt 00:00:23]} c6 {[%clk 01:32:58]} {[%emt 00:00:34]}
5. Bg5 {[%clk 01:41:16]} {[%emt 00:00:39]} h6 {[%clk 01:33:17]} {[%emt
00:00:11]} 6. Bxf6 {[%clk 01:41:17]} {[%emt 00:00:29]} Qxf6 {[%clk 01:33:40]}
{[%emt 00:00:07]} 7. a3 {[%clk 01:40:44]} {[%emt 00:01:03]} dxc4 {[%clk
01:28:39]} {[%emt 00:05:31]} 8. e3 {[%clk 01:39:04]} {[%emt 00:02:10]} b5
{[%clk 01:22:50]} {[%emt 00:06:19]} 9. Ne5 {[%clk 01:39:19]} {[%emt 00:00:15]}
a6 {[%clk 00:57:06]} {[%emt 00:26:15]} 10. f4 {[%clk 01:17:28]} {[%emt
00:22:20]} g6 {[%clk 00:53:00]} {[%emt 00:04:36]} 11. Be2 {[%clk 01:16:33]}
{[%emt 00:01:25]} Bg7 {[%clk 00:49:16]} {[%emt 00:04:14]} 12. O-O {[%clk
01:10:10]} {[%emt 00:06:53]} O-O {[%clk 00:48:11]} {[%emt 00:01:35]} 13. Bf3
{[%clk 01:05:53]} {[%emt 00:04:47]} Qe7 {[%clk 00:39:53]} {[%emt 00:08:48]} 14.
Ne4 {[%clk 01:03:18]} {[%emt 00:03:05]} Ra7 {[%clk 00:22:46]} {[%emt 00:17:38]}
15. b3 {[%clk 00:55:02]} {[%emt 00:08:46]} cxb3 {[%clk 00:21:17]} {[%emt
00:01:58]} 16. Qxb3 {[%clk 00:51:23]} {[%emt 00:04:09]} Rd8 {[%clk 00:21:17]}
{[%emt 00:00:30]} 17. Rfc1 {[%clk 00:50:41]} {[%emt 00:01:11]} Bd7 {[%clk
00:20:43]} {[%emt 00:01:05]} 18. Nc5 {[%clk 00:47:55]} {[%emt 00:03:16]} Be8
{[%clk 00:21:05]} {[%emt 00:00:08]} 19. Be4 {[%clk 00:47:03]} {[%emt 00:01:22]}
a5 {[%clk 00:20:10]} {[%emt 00:01:25]} 20. Ra2 {[%clk 00:45:43]} {[%emt
00:01:50]} Rd6 {[%clk 00:18:56]} {[%emt 00:01:44]} 21. Rac2 {[%clk 00:44:40]}
{[%emt 00:01:33]} Kh7 {[%clk 00:16:56]} {[%emt 00:02:31]} 22. Qd3 {[%clk
00:32:23]} {[%emt 00:12:46]} Kg8 {[%clk 00:16:54]} {[%emt 00:00:32]} 23. Qb3
{[%clk 00:30:24]} {[%emt 00:02:29]} Kh7 {[%clk 00:17:15]} {[%emt 00:00:09]}
1/2-1/2